fUST/lending_fUST_20241229
["ID","MTS","AMOUNT","RATE_DAILY","PERIOD"]
[346971682,1735440652360,-7197.58695313,0.00017985,2]
[346971683,1735440652369,-151.0,0.00018,2]
[346971684,1735440652379,-151.0,0.000181,2]
[346971685,1735440652388,-2928.28,0.00018199,2]
[346971686,1735440652397,-500.0,0.00018199,2]
[346971687,1735440652407,-1175.97,0.00018199,2]
[346971688,1735440652417,-500.0,0.00018199,2]
[346971689,1735440652427,-746.3,0.00018199,2]
[346971690,1735440652437,-7833.04,0.00018199,2]
[346971691,1735440652447,-1286.86,0.000182,2]
[346971692,1735440652457,-2075.01,0.00018202,2]
[346971693,1735440652467,-1130.65,0.00018202,2]
[346971694,1735440652476,-558.77,0.00018202,2]
[346971695,1735440652486,-679.42,0.00018202,2]
[346971696,1735440652495,-1165.82,0.00018202,2]
[346971697,1735440652504,-699.69,0.00018203,2]
[346971698,1735440652513,-538.99,0.00018203,2]
[346971699,1735440652523,-500.0,0.00018203,2]
[346971700,1735440652532,-500.0,0.00018203,2]
[346971701,1735440652542,-500.0,0.00018203,2]
[346971702,1735440652551,-500.0,0.00018203,2]
[346971703,1735440652630,-25110.56,0.00018203,2]
[346971704,1735440652640,-885.21,0.00018204,2]
[346971705,1735440652650,-742.25,0.00018204,2]
[346971706,1735440652659,-1013.35,0.00018204,2]
[346971707,1735440652669,-500.0,0.00018204,2]
[346971708,1735440652681,-313.94976277,0.00018218,2]
[346971709,1735440652691,-2298.34,0.00018219,2]
[346971710,1735440652700,-151.0,0.000183,2]
[346971711,1735440652710,-151.0,0.000183,2]
[346971712,1735440652719,-2928.28,0.00018473,2]
[346971713,1735440652729,-500.0,0.00018473,2]
[346971714,1735440652739,-1175.97,0.00018473,2]
[346971715,1735440652748,-500.0,0.00018473,2]
[346971716,1735440652758,-746.3,0.00018473,2]
[346971717,1735440652768,-7833.04,0.00018473,2]
[346971718,1735440652778,-1286.86,0.00018474,2]
[346971719,1735440652788,-2075.01,0.00018476,2]
[346971720,1735440652797,-1130.65,0.00018476,2]
[346971721,1735440652806,-558.77,0.00018476,2]
[346971722,1735440652816,-679.42,0.00018476,2]
[346971723,1735440652825,-1165.82,0.00018476,2]
[346971724,1735440652835,-699.69,0.00018477,2]
[346971725,1735440652845,-538.99,0.00018477,2]
[346971726,1735440652856,-445.9415761,0.00018477,2]
[346971727,1735440652868,-291.67167329,0.00018477,2]
[346971728,1735440652878,-500.0,0.00018477,2]
[346971729,1735440652888,-511.38858103,0.00018477,2]
[346971730,1735440652897,-25110.56,0.00018477,2]
[346971731,1735440652906,-885.21,0.00018478,2]
[346971732,1735440652916,-742.25,0.00018478,2]
[346971733,1735440652925,-1013.35,0.00018478,2]
[346971734,1735440652937,-500.0,0.00018478,2]
[346971735,1735440652946,-2298.34,0.00018493,2]
[346971736,1735440652955,-476.82465501,0.00018496,2]
[346971737,1735440652964,-1000.0,0.00018521,2]
[346971738,1735440652974,-1000.0,0.00018521,2]
[346971739,1735440652984,-1000.0,0.00018521,2]
[346971740,1735440652993,-313.94976277,0.00018578,2]
[346971741,1735440653002,-544.56678524,0.000187,2]
[346971742,1735440653011,-544.56678522,0.000187,2]
[346971743,1735440653022,-544.56678522,0.000187,2]
[346971744,1735440653031,-544.56678522,0.000187,2]
[346971745,1735440653042,-151.0,0.000187,2]
[346971746,1735440653053,-1598.95,0.000187,2]
[346971747,1735440653064,-4175.03,0.000187,2]
[346971748,1735440653074,-5792.94,0.000187,2]
[346971749,1735440653085,-2928.28,0.00018747,2]
[346971750,1735440653095,-375.31089772,0.00018747,2]
[346971751,1735440653105,-1175.97,0.00018747,2]
[346971752,1735440653114,-500.0,0.00018747,2]
[346971753,1735440653123,-746.3,0.00018747,2]
[346971754,1735440653133,-7833.04,0.00018747,2]
[346971755,1735440653142,-1286.86,0.00018748,2]
[346971756,1735440653154,-2075.01,0.0001875,2]
[346971757,1735440653165,-1130.65,0.0001875,2]
[346971758,1735440653174,-558.77,0.0001875,2]
[346971759,1735440653183,-679.42,0.0001875,2]
[346971760,1735440653193,-1165.82,0.0001875,2]
[346971761,1735440653202,-699.69,0.00018751,2]
[346971762,1735440653211,-538.99,0.00018751,2]
[346971763,1735440653222,-482.90681478,0.00018751,2]
[346971764,1735440653232,-25110.56,0.00018751,2]
[346971765,1735440653241,-885.21,0.00018752,2]
[346971766,1735440653250,-742.25,0.00018752,2]
[346971767,1735440653260,-1013.35,0.00018752,2]
[346971768,1735440653269,-219.93466787,0.00018752,2]
[346971769,1735440653279,-2298.34,0.00018767,2]
[346971770,1735440653288,-232.41984536,0.000189,2]
[346971771,1735440653298,-313.94976277,0.00018937,2]
[346971772,1735440653307,-2928.28,0.00019021,2]
[346971773,1735440653316,-1175.97,0.00019021,2]
[346971774,1735440653325,-500.0,0.00019021,2]
[346971775,1735440653335,-746.3,0.00019021,2]
[346971776,1735440653344,-7833.04,0.00019021,2]
[346971777,1735440653354,-1286.86,0.00019022,2]
[346971778,1735440653363,-2075.01,0.00019024,2]
[346971779,1735440653372,-1130.65,0.00019024,2]
[346971780,1735440653382,-558.77,0.00019024,2]
[346971781,1735440653392,-679.42,0.00019024,2]
[346971782,1735440653402,-1165.82,0.00019024,2]
[346971783,1735440653412,-699.69,0.00019025,2]
[346971784,1735440653422,-538.99,0.00019025,2]
[346971785,1735440653431,-25110.56,0.00019025,2]
[346971786,1735440653441,-885.21,0.00019026,2]
[346971787,1735440653451,-742.25,0.00019026,2]
[346971788,1735440653461,-1013.35,0.00019026,2]
[346971789,1735440653470,-2298.34,0.00019041,2]
[346971790,1735440653480,-151.0,0.000191,2]
[346971791,1735440653491,-153.0,0.00019135,2]
[346971792,1735440653502,-153.0,0.00019135,2]
[346971793,1735440653512,-153.0,0.00019135,2]
[346971794,1735440653521,-153.0,0.00019135,2]
[346971795,1735440653530,-153.0,0.00019135,2]
[346971796,1735440653539,-153.0,0.00019135,2]
[346971797,1735440653549,-153.0,0.00019135,2]
[346971798,1735440653558,-153.0,0.00019135,2]
[346971799,1735440653567,-153.0,0.00019135,2]
[346971800,1735440653577,-153.0,0.00019135,2]
[346971801,1735440653586,-153.0,0.00019135,2]
[346971802,1735440653595,-153.0,0.00019135,2]
[346971803,1735440653604,-153.0,0.00019135,2]
[346971804,1735440653614,-153.0,0.00019135,2]
[346971805,1735440653623,-153.0,0.00019135,2]
[346971806,1735440653632,-153.0,0.00019137,2]
[346971807,1735440653641,-153.0,0.00019137,2]
[346971808,1735440653650,-153.0,0.00019137,2]
[346971809,1735440653659,-153.0,0.00019137,2]
[346971810,1735440653669,-153.0,0.00019137,2]
[346971811,1735440653678,-153.0,0.00019137,2]
[346971812,1735440653688,-153.0,0.00019137,2]
[346971813,1735440653698,-2839.57,0.00019178,2]
[346971814,1735440653707,-2839.57,0.00019178,2]
[346971815,1735440653717,-2839.57,0.00019178,2]
[346971816,1735440653726,-2839.57,0.00019178,2]
[346971817,1735440653735,-2839.57,0.00019178,2]
[346971818,1735440653744,-2839.57,0.00019178,2]
[346971819,1735440653753,-2839.57,0.00019178,2]
[346971820,1735440653763,-2839.57,0.00019178,2]
[346971821,1735440653772,-2839.57,0.00019178,2]
[346971822,1735440653781,-2839.57,0.00019178,2]
[346971823,1735440653792,-2839.57,0.00019178,2]
[346971824,1735440653802,-2839.57,0.00019178,2]
[346971825,1735440653812,-2839.57,0.00019178,2]
[346971826,1735440653822,-2839.57,0.00019178,2]
[346971827,1735440653832,-2839.57,0.00019178,2]
[346971828,1735440653841,-2839.57,0.00019178,2]
[346971829,1735440653851,-2839.57,0.00019178,2]
[346971830,1735440653861,-2839.57,0.00019178,2]
[346971831,1735440653870,-2839.57,0.00019178,2]
[346971832,1735440653880,-2839.57,0.00019178,2]
[346971833,1735440653889,-2839.57,0.00019178,2]
[346971834,1735440653898,-2839.57,0.00019178,2]
[346971835,1735440653908,-2839.57,0.00019178,2]
[346971836,1735440653917,-164.984708,0.00019178,2]
[346971837,1735440653926,-2928.28,0.00019295,2]
[346971838,1735440653938,-1175.97,0.00019295,2]
[346971839,1735440653947,-500.0,0.00019295,2]
[346971840,1735440653957,-746.3,0.00019295,2]
[346971841,1735440653966,-7833.04,0.00019295,2]
[346971842,1735440653975,-1286.86,0.00019296,2]
[346971843,1735440653984,-313.94976277,0.00019297,2]
[346971844,1735440653993,-2075.01139003,0.00019298,2]
[346971845,1735440654002,-1130.67699713,0.00019298,2]
[346971846,1735440654013,-558.91023361,0.00019298,2]
[346971847,1735440654023,-679.46276889,0.00019298,2]
[346971848,1735440654032,-1165.94933134,0.00019298,2]
[346971849,1735440654043,-699.80050248,0.00019299,2]
[346971850,1735440654052,-539.19562835,0.00019299,2]
[346971851,1735440654061,-2839.57044704,0.00019299,2]
[346971852,1735440654071,-25110.58322196,0.00019299,2]
[346971853,1735440654079,-885.41425598,0.000193,2]
[346971854,1735440654089,-742.30551886,0.000193,2]
[346971855,1735440654100,-1013.48,0.000193,2]
[346971856,1735440654111,-2298.34,0.00019315,2]
[346971857,1735440654121,-150.436,0.00019341,2]
[346971858,1735440654193,-2137.955,0.00019341,2]
[346971859,1735440654203,-533.476,0.00019341,2]
[346971860,1735440654213,-2352.0,0.00019341,2]
[346971861,1735440654222,-1437.49553793,0.00019522,2]
[346971862,1735440654231,-654.95006225,0.00019522,2]
[346971863,1735440654241,-1500.0,0.00019522,2]
[346971864,1735440654252,-2928.28,0.00019569,2]
[346971865,1735440654262,-1175.97,0.00019569,2]
[346971866,1735440654272,-500.0,0.00019569,2]
[346971867,1735440654281,-746.3,0.00019569,2]
[346971868,1735440654293,-7833.04,0.00019569,2]
[346971869,1735440654303,-1286.86,0.0001957,2]
[346971870,1735440654312,-2298.34,0.00019589,2]
[346971871,1735440654321,-476.82465501,0.00019615,2]
[346971872,1735440654331,-313.94976277,0.00019656,2]
[346971873,1735440654340,-500.0,0.00019726,2]
[346971874,1735440654350,-500.0,0.00019726,2]
[346971875,1735440654359,-500.0,0.00019726,2]
[346971876,1735440654368,-512.57742751,0.00019726,2]
[346971877,1735440654378,-44448.67781063,0.00019805,2]
[346971878,1735440654388,-2928.28,0.00019843,2]
[346971879,1735440654397,-1175.97,0.00019843,2]
[346971880,1735440654407,-500.0,0.00019843,2]
[346971881,1735440654416,-746.3,0.00019843,2]
[346971882,1735440654426,-7833.04,0.00019843,2]
[346971883,1735440654436,-1286.86,0.00019844,2]
[346971884,1735440654445,-2298.34,0.00019863,2]
[346971885,1735440654455,-1004.34562096,0.0001999,10]
[346971886,1735440654464,-313.94976277,0.00020016,2]
[346971887,1735440654474,-1890.70173908,0.00020044,3]
[346971888,1735440654484,-1890.70173908,0.00020044,3]
[346971889,1735440654493,-1890.70173908,0.00020044,3]
[346971890,1735440654502,-1890.70173908,0.00020044,3]
[346971891,1735440654511,-1890.70173908,0.00020044,3]
[346971892,1735440654522,-1890.70173908,0.00020044,3]
[346971893,1735440654532,-1890.70173908,0.00020044,3]
[346971894,1735440654542,-1890.70173908,0.00020044,3]
[346971895,1735440654552,-1890.70173908,0.00020044,3]
[346971896,1735440654562,-1890.70073908,0.00020044,3]
[346971897,1735440654572,-151.0,0.00020083,2]
[346971898,1735440654581,-2928.28,0.00020117,2]
[346971899,1735440654590,-1175.97,0.00020117,2]
[346971900,1735440654600,-500.0,0.00020117,2]
[346971901,1735440654609,-746.3,0.00020117,2]
[346971902,1735440654618,-7833.04,0.00020117,2]
[346971903,1735440654628,-1286.86,0.00020118,2]
[346971904,1735440654637,-2298.34,0.00020137,2]
[346971905,1735440654647,-499.0,0.00020273,2]
[346971906,1735440654656,-313.94976277,0.00020375,2]
[346971907,1735440654665,-2928.28,0.00020391,2]
[346971908,1735440654674,-1175.97,0.00020391,2]
[346971909,1735440654684,-513.27375388,0.00020391,2]
[346971910,1735440654693,-746.3,0.00020391,2]
[346971911,1735440654703,-7833.04,0.00020391,2]
[346971912,1735440654712,-1286.86,0.00020392,2]
[346971913,1735440654721,-2298.34,0.00020411,2]
[346971914,1735440654730,-400.0,0.00020447,2]
[346971915,1735440654740,-578.290882,0.00020521,2]
[346971916,1735440654750,-5013.18104453,0.00020595,2]
[346971917,1735440654759,-5000.0,0.00020595,2]
[346971918,1735440654769,-5000.0,0.00020595,2]
[346971919,1735440654778,-5000.0,0.00020595,2]
[346971920,1735440654787,-5000.0,0.00020595,2]
[346971921,1735440654796,-5000.0,0.00020595,2]
[346971922,1735440654806,-331.967612,0.000206,9]
[346971923,1735440654816,-2928.28,0.00020665,2]
[346971924,1735440654825,-1175.97,0.00020665,2]
[346971925,1735440654834,-746.3,0.00020665,2]
[346971926,1735440654843,-7833.04,0.00020665,2]
[346971927,1735440654852,-1286.86,0.00020666,2]
[346971928,1735440654861,-2298.34,0.00020685,2]
[346971929,1735440654871,-1598.95,0.000207,2]
[346971930,1735440654880,-4175.03,0.000207,2]
[346971931,1735440654889,-5792.94,0.000207,2]
[346971932,1735440654898,-500.0,0.00020701,2]
[346971933,1735440654909,-500.0,0.00020701,2]
[346971934,1735440654920,-151.24351405,0.00020701,2]
[346971935,1735440654929,-150.32396388,0.00020701,2]
[346971936,1735440654941,-500.0,0.00020701,2]
[346971937,1735440654951,-150.26,0.00020701,2]
[346971938,1735440654961,-150.58165007,0.00020701,2]
[346971939,1735440654970,-300.3568267,0.00020701,2]
[346971940,1735440654981,-500.0,0.00020701,2]
[346971941,1735440654991,-283.10195097,0.00020701,2]
[346971942,1735440655000,-150.26,0.00020701,2]
[346971943,1735440655010,-500.0,0.00020701,2]
[346971944,1735440655021,-500.0,0.00020701,2]
[346971945,1735440655030,-150.26,0.00020701,2]
[346971946,1735440655040,-150.97308427,0.00020701,2]
[346971947,1735440655050,-150.26,0.00020701,2]
[346971948,1735440655061,-578.290882,0.00020712,2]
[346971949,1735440655072,-313.94976277,0.00020735,2]
[346971950,1735440655081,-476.82465501,0.00020735,2]
[346971951,1735440655091,-604933.87330866,0.0002076,30]
[346971952,1735440655115,-283.824463,0.00015189,2]
[346971953,1735440655125,-14096.28335096,0.0002076,30]
[346971954,1735440655136,-1641.86771858,0.0002076,30]
[346971955,1735440655148,-513.66914865,0.0002076,30]
[346971956,1735440655182,-283.824463,0.00015463,2]
[346971957,1735440655192,-283.82447,0.00015666,2]
[346971958,1735440655203,-176.351067,0.0002076,30]
[346971959,1735440655215,-988.48,0.0002076,30]
[346971960,1735440655226,-2587.84096618,0.0002076,30]
[346971961,1735440655265,-815.0,0.0002076,30]
[346971962,1735440655395,-153.0,0.00019135,2]
[346971963,1735440655406,-153.0,0.00019135,2]
[346971964,1735440655415,-153.0,0.00019135,2]
[346971965,1735440655424,-99088.80801025,0.0002076,30]
[346971966,1735440655435,-13337.9998,0.0002076,30]
[346971978,1735441543142,-154.02112611,0.00012518,2]
[346971979,1735441543164,-154.02112611,0.00012644,2]
[346971980,1735441543184,-177.7651895,0.00012901,2]
[346971981,1735441543206,-300.0,0.00012994,2]
[346971982,1735441543231,-504.90320061,0.00012995,2]
[346971983,1735441543251,-500.0,0.00012995,2]
[346971984,1735441543274,-500.0,0.00012995,2]
[346971985,1735441543294,-505.4264446,0.00012995,2]
[346971986,1735441543316,-52.75569215,0.00012995,2]
[346971987,1735441637102,-300.0,0.00012063,2]
[346971988,1735441637124,-730.41103855,0.00012064,2]
[346971989,1735441644150,-1620.93634163,0.00012064,2]
[346971990,1735441653099,-1262.06803403,0.00012064,2]
[346971991,1735441654102,-2281.88525437,0.00012064,2]
[346971993,1735441752110,-250.0,0.00011818,2]
[346971994,1735441752131,-250.0,0.00011937,2]
[346971995,1735441752153,-250.0,0.00012057,2]
[346971996,1735441752174,-300.0,0.00012063,2]
[346971997,1735441752197,-1752.42108889,0.00012064,2]
[346971999,1735441800295,10000.0,0.0001,2]
[346972000,1735441800328,10000.0,0.0001,2]
[346972001,1735441800359,10000.0,0.0001,2]
[346972002,1735441800394,10000.0,0.0001,2]
[346972003,1735441800427,10000.0,0.0001,2]
[346972004,1735441800459,10000.0,0.0001,2]
[346972005,1735441800493,10000.0,0.0001,2]
[346972006,1735441800525,10000.0,0.0001,2]
[346972007,1735441800557,10000.0,0.0001,2]
[346972008,1735441800590,10000.0,0.0001,2]
[346972009,1735441800621,10000.0,0.0001,2]
[346972010,1735441800652,10000.0,0.0001,2]
[346972011,1735441800685,10000.0,0.0001,2]
[346972012,1735441800716,10000.0,0.0001,2]
[346972013,1735441800748,10000.0,0.0001,2]
[346972014,1735441800780,10000.0,0.0001,2]
[346972015,1735441800812,10000.0,0.0001,2]
[346972016,1735441800844,10000.0,0.0001,2]
[346972017,1735441800875,10000.0,0.0001,2]
[346972018,1735441801019,10000.0,0.0001,2]
[346972019,1735441801066,10000.0,0.0001,2]
[346972020,1735441801104,10000.0,0.0001,2]
[346972021,1735441801139,10000.0,0.0001,2]
[346972022,1735441801174,10000.0,0.0001,2]
[346972023,1735441801208,10000.0,0.0001,2]
[346972024,1735441801241,10000.0,0.0001,2]
[346972025,1735441801274,10000.0,0.0001,2]
[346972026,1735441801305,10000.0,0.0001,2]
[346972027,1735441801341,10000.0,0.0001,2]
[346972075,1735441833045,-356.79539212,9.999e-05,2]
[346972077,1735441833054,-7434.4911545,0.0001,2]
[346972106,1735441838842,-500.0,9.999e-05,2]
[346972107,1735441838851,-187.84560501,9.999e-05,2]
[346972228,1735441844765,-192.69387288,9.999e-05,2]
[346972230,1735441844774,-500.0,9.999e-05,2]
[346972232,1735441844783,-518.45124977,9.999e-05,2]
[346972233,1735441844792,-136.6041494,9.999e-05,2]
[346972781,1735441904378,483.0,0.00025,120]
[346972784,1735442123300,3494.73268359,0.00013,5]
[346972785,1735442131341,822.09145855,0.00013,5]
[346972787,1735442616231,241.46619251,8.997e-05,2]
[346972788,1735442631689,241.46619251,8.997e-05,2]
[346972789,1735442647589,241.46619251,8.997e-05,2]
[346972790,1735442662907,241.46619251,8.997e-05,2]
[346972791,1735442677677,241.46619251,8.997e-05,2]
[346972792,1735442692465,241.46619251,8.997e-05,2]
[346972793,1735442707838,241.46619251,8.997e-05,2]
[346972794,1735442716188,8309.73665243,8.999e-05,2]
[346972795,1735442716338,10000.0,8.999e-05,2]
[346972796,1735442716371,6590.26334757,8.999e-05,2]
[346972797,1735442723572,241.46619251,8.997e-05,2]
[346972798,1735442739389,241.46619251,8.997e-05,2]
[346972799,1735442751294,-241.46619251,9.088e-05,2]
[346972800,1735442751315,-530.6088755,9.18e-05,2]
[346972801,1735442751337,-300.0,9.996e-05,2]
[346972802,1735442751360,-500.0,9.997e-05,2]
[346972803,1735442751383,-500.0,9.997e-05,2]
[346972804,1735442751405,-500.0,9.997e-05,2]
[346972805,1735442751427,-246.73521958,9.997e-05,2]
[346972806,1735442834215,860.0307345,8.998e-05,2]
[346972807,1735442834514,182.49230956,0.00025,120]
[346972808,1735442835973,150.0,0.00025,120]
[346972809,1735442838125,-419.8800084,9.067e-05,2]
[346972810,1735442838146,-684.91680998,9.798e-05,2]
[346972811,1735442838168,-584.12903388,9.897e-05,2]
[346972812,1735442838286,150.0,0.00025,120]
[346972813,1735442844100,-932.66328681,9.897e-05,2]
[346972814,1735442846112,-566.20853971,9.897e-05,2]
[346972815,1735442846137,-300.0,9.996e-05,2]
[346972816,1735442846161,-253.26478042,9.997e-05,2]
[346972817,1735442846185,-408.79407875,9.997e-05,2]
[346972818,1735442851095,-91.20592125,9.997e-05,2]
[346972819,1735442851120,-358.79407875,9.997e-05,2]
[346972820,1735442854100,-141.20592125,9.997e-05,2]
[346972821,1735442854126,-500.0,9.997e-05,2]
[346972822,1735442854152,-372.27022833,9.997e-05,2]
[346972825,1735442963187,-2632.9900935,9.209e-05,2]
[346972826,1735442963209,-530.1316638,9.273e-05,2]
[346972827,1735442963232,-127.72977167,9.997e-05,2]
[346972828,1735442963255,-500.0,9.997e-05,2]
[346972829,1735442963279,-500.0,9.997e-05,2]
[346972830,1735442963301,-500.0,9.997e-05,2]
[346972831,1735442963324,-500.0,9.997e-05,2]
[346972832,1735442963346,-581.51480373,9.997e-05,2]
[346972833,1735442963368,-500.0,9.997e-05,2]
[346972834,1735442963391,-258.33975843,9.997e-05,2]
[346972835,1735442963413,-500.0,9.997e-05,2]
[346972836,1735442963435,-500.0,9.998e-05,2]
[346972837,1735442963459,-500.0,9.998e-05,2]
[346972838,1735442963481,-500.0,9.998e-05,2]
[346972839,1735442963503,-504.30351748,9.998e-05,2]
[346972840,1735442963523,-500.77130577,9.998e-05,2]
[346972841,1735442963544,-501.00476758,9.998e-05,2]
[346972842,1735442963565,-500.59643341,9.998e-05,2]
[346972843,1735442963586,-500.0,9.998e-05,2]
[346972844,1735442963606,-500.8412705,9.998e-05,2]
[346972845,1735442963627,-500.59182723,9.998e-05,2]
[346972846,1735442963648,-501.5617095,9.998e-05,2]
[346972847,1735442963669,-500.0,9.998e-05,2]
[346972848,1735442963690,-502.4917147,9.998e-05,2]
[346972849,1735442963711,-504.26985437,9.998e-05,2]
[346972850,1735442963732,-500.0,9.998e-05,2]
[346972851,1735442963753,-453.19405639,9.998e-05,2]
[346972852,1735443003151,40586.0,0.00025,120]
[346972853,1735443009667,11042.0,0.00025,120]
[346972878,1735443032094,-500.0,9.997e-05,2]
[346972879,1735443032103,-500.0,9.997e-05,2]
[346972880,1735443032113,-500.0,9.997e-05,2]
[346972881,1735443032121,-500.0,9.997e-05,2]
[346972882,1735443032131,-502.46531293,9.997e-05,2]
[346972883,1735443032140,-499.5595865,9.997e-05,2]
[346972884,1735443032149,-48.43018398,9.998e-05,2]
[346972885,1735443032158,-504.28890848,9.998e-05,2]
[346972886,1735443032167,-503.89035123,9.998e-05,2]
[346972887,1735443032176,-500.0,9.998e-05,2]
[346972888,1735443032185,-500.0,9.998e-05,2]
[346972889,1735443032194,-501.70433121,9.998e-05,2]
[346972890,1735443032203,-500.0,9.998e-05,2]
[346972891,1735443032212,-500.0,9.998e-05,2]
[346972892,1735443032221,-504.20278743,9.998e-05,2]
[346972893,1735443032230,-500.0,9.998e-05,2]
[346972894,1735443032239,-502.09159921,9.998e-05,2]
[346972895,1735443032248,-503.59325348,9.998e-05,2]
[346972896,1735443032258,-503.8137124,9.998e-05,2]
[346972897,1735443032268,-503.86865073,9.998e-05,2]
[346972898,1735443032277,-500.0,9.998e-05,2]
[346972899,1735443032286,-500.43294747,9.998e-05,2]
[346972900,1735443032295,-500.92073022,9.998e-05,2]
[346972901,1735443032307,-501.62321727,9.998e-05,2]
[346972902,1735443032316,-505.22550322,9.998e-05,2]
[346972903,1735443032325,-504.46236773,9.998e-05,2]
[346972904,1735443032334,-500.0,9.998e-05,2]
[346972905,1735443032344,-501.36743439,9.998e-05,2]
[346972906,1735443032353,-500.29705368,9.998e-05,2]
[346972907,1735443032361,-500.0,9.998e-05,2]
[346972908,1735443032370,-500.0,9.998e-05,2]
[346972909,1735443032380,-249.75677448,9.998e-05,2]
[346972910,1735443032389,-447.66574635,9.998e-05,2]
[346972911,1735443032502,-502.26685952,9.998e-05,2]
[346972912,1735443032512,-500.0,9.998e-05,2]
[346972913,1735443032521,-500.0,9.998e-05,2]
[346972914,1735443032530,-500.0,9.998e-05,2]
[346972915,1735443032539,-501.91119046,9.998e-05,2]
[346972916,1735443032549,-500.0,9.998e-05,2]
[346972917,1735443032558,-500.0,9.998e-05,2]
[346972918,1735443032569,-500.0,9.998e-05,2]
[346972919,1735443032578,-500.0,9.998e-05,2]
[346972920,1735443032588,-500.0,9.998e-05,2]
[346972921,1735443032597,-501.23409041,9.998e-05,2]
[346972922,1735443032606,-500.0,9.998e-05,2]
[346972923,1735443032615,-500.0,9.998e-05,2]
[346972924,1735443032624,-500.0,9.998e-05,2]
[346972925,1735443032634,-500.0,9.998e-05,2]
[346972926,1735443032646,-500.0,9.998e-05,2]
[346972927,1735443032656,-500.0,9.998e-05,2]
[346972928,1735443032665,-500.0,9.998e-05,2]
[346972929,1735443032674,-500.0,9.998e-05,2]
[346972930,1735443032683,-592.23306361,9.998e-05,2]
[346972931,1735443032693,-500.0,9.998e-05,2]
[346972932,1735443032703,-500.0,9.998e-05,2]
[346972933,1735443032712,-500.0,9.998e-05,2]
[346972934,1735443032721,-500.55941946,9.998e-05,2]
[346972935,1735443032731,-500.0,9.998e-05,2]
[346972936,1735443032741,-500.0,9.998e-05,2]
[346972937,1735443032750,-500.0,9.998e-05,2]
[346972938,1735443032760,-501.31232491,9.998e-05,2]
[346972939,1735443032771,-500.62314664,9.998e-05,2]
[346972940,1735443032780,-500.0,9.998e-05,2]
[346972941,1735443032789,-500.0,9.998e-05,2]
[346972942,1735443032799,-500.0,9.998e-05,2]
[346972943,1735443032808,-500.0,9.998e-05,2]
[346972944,1735443032820,-500.0,9.998e-05,2]
[346972945,1735443032830,-500.0,9.998e-05,2]
[346972946,1735443032845,-500.0,9.998e-05,2]
[346972947,1735443032855,-500.0,9.998e-05,2]
[346972948,1735443032867,-500.0,9.998e-05,2]
[346972949,1735443032877,-500.0,9.998e-05,2]
[346972950,1735443032887,-500.0,9.998e-05,2]
[346972951,1735443032895,-505.00149172,9.998e-05,2]
[346972952,1735443032905,-500.0,9.998e-05,2]
[346972953,1735443032915,-503.59626508,9.998e-05,2]
[346972954,1735443032924,-401.35004641,9.998e-05,2]
[346972955,1735443032934,-500.0,9.998e-05,2]
[346972956,1735443032943,-500.0,9.998e-05,2]
[346972957,1735443032952,-500.0,9.998e-05,2]
[346972958,1735443032961,-301.74270659,9.998e-05,2]
[346972959,1735443032972,-500.0,9.998e-05,2]
[346972960,1735443032981,-500.0,9.998e-05,2]
[346972961,1735443032991,-504.49492047,9.999e-05,2]
[346972962,1735443033000,-568.43125723,9.999e-05,2]
[346972963,1735443033009,-500.0,9.999e-05,2]
[346972964,1735443033018,-501.27858652,9.999e-05,2]
[346972965,1735443033028,-594.80482802,9.999e-05,2]
[346972966,1735443033038,-502.09877041,9.999e-05,2]
[346972967,1735443033047,-501.75538745,9.999e-05,2]
[346972968,1735443033057,-501.18646477,9.999e-05,2]